fUSD/lending_fUSD_20260408
["ID","MTS","AMOUNT","RATE_DAILY","PERIOD"]
[420053141,1775634652059,-786.02,0.00015565,2]
[420053142,1775634652069,-2070.7998187,0.000156,2]
[420053143,1775634652079,-151.0,0.0001563,2]
[420053144,1775634652089,-646.65982734,0.00015656,2]
[420053145,1775634652098,-599.60298507,0.00015656,2]
[420053146,1775634652108,-209.40437684,0.00015657,2]
[420053147,1775634652117,-200.0,0.00015657,2]
[420053148,1775634652127,-1481.23780761,0.00015657,2]
[420053149,1775634652136,-891.61887448,0.00015657,2]
[420053150,1775634652146,-916.46729421,0.0001569,2]
[420053151,1775634652156,-1117707.64041538,0.000157,2]
[420053152,1775634652166,-1117707.64041538,0.000157,2]
[420053153,1775634652176,-371.0,0.00015733,2]
[420053154,1775634652186,-151.0,0.00015764,2]
[420053155,1775634652200,-415.81,0.00015767,2]
[420053156,1775634652210,-154.0,0.0001577,3]
[420053157,1775634652219,-715.89742388,0.000158,2]
[420053158,1775634652230,-500.0,0.00015808,2]
[420053159,1775634652239,-500.0,0.00015808,2]
[420053160,1775634652249,-396.4808442,0.00015808,2]
[420053161,1775634652258,-786.02,0.00015839,2]
[420053162,1775634652268,-415.81,0.00015844,2]
[420053163,1775634652278,-1000.0,0.00015858,2]
[420053164,1775634652287,-163.8001,0.0001586,2]
[420053165,1775634652297,-2494.97,0.00015862,2]
[420053166,1775634652307,-163.8001,0.0001587,2]
[420053167,1775634652317,-1600.0,0.00015871,2]
[420053168,1775634652325,-500.0,0.0001589,2]
[420053169,1775634652334,-500.0,0.0001589,2]
[420053170,1775634652344,-500.0,0.0001589,2]
[420053171,1775634652354,-194.91667222,0.0001589,2]
[420053172,1775634652363,-2000.0,0.0001589,2]
[420053173,1775634652373,-1346.46562521,0.0001589,2]
[420053174,1775634652382,-2500.0,0.0001589,2]
[420053175,1775634652392,-2500.0,0.0001589,2]
[420053176,1775634652402,-2500.0,0.0001589,2]
[420053177,1775634652412,-2500.0,0.0001589,2]
[420053178,1775634652422,-2500.0,0.0001589,2]
[420053179,1775634652433,-784.48454081,0.0001589,2]
[420053180,1775634652443,-25000.0,0.00015891,3]
[420053181,1775634652453,-4000.0,0.00015895,2]
[420053182,1775634652463,-25000.0,0.000159,3]
[420053183,1775634652473,-22222.89873192,0.000159,3]
[420053184,1775634652482,-321.19440796,0.000159,2]
[420053185,1775634652492,-17033.6975553,0.000159,2]
[420053186,1775634652502,-4810.31020036,0.000159,2]
[420053187,1775634652511,-2000.0,0.000159,2]
[420053188,1775634652521,-214.48,0.00015911,2]
[420053189,1775634652530,-415.81,0.00015922,2]
[420053190,1775634652540,-1000.0,0.00015942,2]
[420053191,1775634652550,-305250.3565937,0.00015951,2]
[420053192,1775634652560,-151.0,0.00015951,2]
[420053193,1775634652571,-151.0,0.00015951,2]
[420053194,1775634652581,-151.0,0.00015951,2]
[420053195,1775634652591,-151.0,0.00015951,2]
[420053196,1775634652601,-151.0,0.00015951,2]
[420053197,1775634652611,-153.67571,0.00015951,2]
[420053198,1775634652620,-151.0,0.00015951,2]
[420053199,1775634652631,-151.0,0.00015951,2]
[420053200,1775634652640,-151.646467,0.00015951,2]
[420053201,1775634652649,-151.0,0.00015951,2]
[420053202,1775634652659,-153.872155,0.00015951,2]
[420053203,1775634652668,-151.0,0.00015951,2]
[420053204,1775634652677,-151.0,0.00015951,2]
[420053205,1775634652687,-151.0,0.00015951,2]
[420053206,1775634652697,-164.194441,0.00015951,2]
[420053207,1775634652707,-151.0,0.00015951,2]
[420053208,1775634652717,-151.0,0.00015951,2]
[420053209,1775634652727,-151.0,0.00015951,2]
[420053210,1775634652737,-151.0,0.00015951,2]
[420053211,1775634652747,-151.0,0.00015951,2]
[420053212,1775634652757,-151.0,0.00015951,2]
[420053213,1775634652767,-151.0,0.00015951,2]
[420053214,1775634652777,-151.0,0.00015951,2]
[420053215,1775634652786,-151.0,0.00015951,2]
[420053216,1775634652795,-151.0,0.00015951,2]
[420053217,1775634652804,-151.0,0.00015951,2]
[420053218,1775634652814,-321.648856,0.00015951,2]
[420053219,1775634652823,-321.648856,0.00015951,2]
[420053220,1775634652833,-151.0,0.00015951,2]
[420053221,1775634652842,-321.648856,0.00015951,2]
[420053222,1775634652851,-151.0,0.00015951,2]
[420053223,1775634652860,-321.648856,0.00015951,2]
[420053224,1775634652869,-151.0,0.00015951,2]
[420053225,1775634652878,-151.0,0.00015951,2]
[420053226,1775634652887,-151.0,0.00015951,2]
[420053227,1775634652897,-151.0,0.00015951,2]
[420053228,1775634652907,-1000.0,0.00015956,2]
[420053229,1775634652917,-150.0,0.00015991,2]
[420053230,1775634652927,-151.0,0.00015997,2]
[420053231,1775634652936,-666.0,0.00015999,2]
[420053232,1775634652946,-666.0,0.00015999,2]
[420053233,1775634652957,-3950668.76182197,0.00016,2]
[420053234,1775634652966,-15716.60340612,0.00016,2]
[420053235,1775634652976,-3309.50165935,0.00016,2]
[420053236,1775634652986,-7408672.15374653,0.00016,2]
[420053237,1775634654097,-809.73291563,0.00016,2]
[420053238,1775634654107,-622.153193,0.00016,2]
[420053239,1775634654180,-2426.4876483,0.000159,2]
[420053240,1775634654921,-4303.82133069,0.000159,2]
[420053241,1775634654931,-171529.93630917,0.00016,2]
[420053242,1775634655069,-922.18333418,0.00016,2]
[420053243,1775634655447,-5690.43108683,0.00012756,2]
[420053244,1775634655459,-13420.88065385,0.00012756,2]
[420053245,1775634655468,-184.01842302,0.000159,2]
[420053246,1775634655479,-5333.96537861,0.00016,2]
[420053247,1775634656502,-1065.32192759,0.00016,2]
[420053248,1775634656514,-16853.25,0.00016,2]
[420053249,1775634656526,-1608.63670221,0.00016,2]
[420053250,1775634656567,-4445.91469702,0.00013467,2]
[420053251,1775634656579,-937.39489326,0.00013467,2]
[420053252,1775634767012,500.0,9.9e-05,2]
[420053253,1775634786030,995.0,9.9e-05,3]
[420053255,1775634847170,156.0,9.9e-05,3]
[420053256,1775634911692,999.0,9.9e-05,3]
[420053257,1775634911990,155.0,9.9e-05,3]
[420053258,1775634926015,500.0,9.9e-05,2]
[420053259,1775634964705,949.0,9.9e-05,3]
[420053260,1775635025471,902.0,9.9e-05,3]
[420053264,1775635087455,150.0,9.9e-05,2]
[420053265,1775635091919,857.0,9.9e-05,3]
[420053272,1775635147142,814.0,9.9e-05,3]
[420053274,1775635207461,155.0,9.9e-05,3]
[420053275,1775635211919,773.0,9.9e-05,3]
[420053276,1775635267703,735.0,9.9e-05,3]
[420053279,1775635329048,698.0,9.9e-05,3]
[420053280,1775635359571,-26522.04,9.998e-05,2]
[420053281,1775635359597,-250.0,0.00010067,2]
[420053282,1775635359622,-5000.0,0.00010137,2]
[420053283,1775635359647,-437.01,0.0001016,2]
[420053284,1775635359671,-250.0,0.00010172,2]
[420053285,1775635359696,-1200.0,0.0001043,2]
[420053286,1775635359721,-1200.0,0.0001043,2]
[420053287,1775635359746,-5000.0,0.00010431,2]
[420053288,1775635359771,-3323.97216984,0.00010431,2]
[420053289,1775635359795,-3551.041,0.00010597,2]
[420053290,1775635359820,-205.36,0.00010597,2]
[420053291,1775635359844,-71285.66825939,0.00010702,2]
[420053292,1775635359868,-437.01,0.00010724,2]
[420053293,1775635359891,-500.0,0.00010724,2]
[420053294,1775635359915,-500.0,0.00010724,2]
[420053295,1775635359940,-192.0,0.00010724,2]
[420053296,1775635359965,-1678.99,0.00010738,2]
[420053297,1775635359987,-150.0,0.000108,2]
[420053298,1775635360011,-2070.7998187,0.00010899,2]
[420053299,1775635360035,-2500.0,0.00010899,2]
[420053300,1775635360059,-1961.80818149,0.00010899,2]
[420053301,1775635360083,-150.0,0.00010899,2]
[420053302,1775635360107,-969.09964828,0.00010899,2]
[420053303,1775635360130,-625.23520736,0.00010899,2]
[420053304,1775635360153,-160.59720398,0.000109,2]
[420053305,1775635360176,-5639.36851096,0.000109,2]
[420053306,1775635371917,-200.0,9.998e-05,2]
[420053307,1775635387160,671.0,9.998e-05,3]
[420053308,1775635452824,637.0,9.998e-05,3]
[420053309,1775635511629,605.0,9.998e-05,3]
[420053310,1775635512002,155.0,9.998e-05,3]
[420053311,1775635529011,5000.01,8.516e-05,2]
[420053312,1775635529035,1506.39,8.516e-05,2]
[420053314,1775635565185,575.0,9.998e-05,3]
[420053315,1775635588877,3493.62,9.959e-05,2]
[420053316,1775635588902,5000.01,9.959e-05,2]
[420053317,1775635588926,1506.37,9.959e-05,2]
[420053318,1775635621268,3493.64,9.959e-05,2]
[420053319,1775635621291,5000.01,9.959e-05,2]
[420053320,1775635621315,271.35,9.959e-05,2]
[420053321,1775635625534,546.0,9.998e-05,3]
[420053322,1775635635001,196.0,8.082e-05,2]
[420053323,1775635635214,196.0,8.89e-05,2]
[420053324,1775635635390,196.0,9.698e-05,2]
[420053325,1775635659196,2975.2123007,8e-05,2]
[420053326,1775635685585,519.0,9.998e-05,3]
[420053327,1775635747644,493.0,9.998e-05,3]
[420053328,1775635804180,209.83200986,5.48e-05,120]
[420053329,1775635807453,155.0,9.998e-05,3]
[420053330,1775635812242,469.0,9.998e-05,3]
[420053345,1775635832671,-0.97336388,0.0001,2]
[420053346,1775635832683,-489.18139785,0.0001,2]
[420053347,1775635832692,-294.0,0.0001,2]
[420053348,1775635832702,-15117.26040413,0.0001,2]
[420053349,1775635832712,-348.68212697,0.0001,2]
[420053350,1775635832722,-150.0,0.000102,2]
[420053351,1775635832732,-300.0,0.00010207,2]
[420053352,1775635832743,-300.0,0.00010207,2]
[420053353,1775635832752,-1200.0,0.00010207,2]
[420053354,1775635832763,-8608.12,0.00010208,2]
[420053355,1775635832773,-300.0,0.0001024,2]
[420053356,1775635832783,-1924.47,0.00010241,2]
[420053357,1775635832793,-196.0,0.00010506,2]
[420053358,1775635832803,-294.87623971,0.00010699,2]
[420053359,1775635832812,-500.0,0.00010699,2]
[420053360,1775635832822,-320.38778786,0.00010699,2]
[420053361,1775635832832,-500.0,0.00010699,2]
[420053362,1775635832842,-208.27775595,0.00010699,2]
[420053363,1775635832851,-608.03677885,0.00010699,2]
[420053364,1775635832861,-500.0,0.00010699,2]
[420053365,1775635832871,-500.0,0.00010699,2]
[420053366,1775635832880,-500.0,0.00010699,2]
[420053367,1775635832890,-894265.1615668,0.000107,2]
[420053368,1775635832903,-83939.53555821,0.000107,2]
[420053369,1775635832915,-40847.50771943,0.000107,2]
[420053370,1775635832927,-126467.20117758,0.000107,2]
[420053371,1775635832939,-1254.41808677,0.000107,2]
[420053378,1775635837996,-1307.872121,0.00010601,2]
[420053379,1775635838006,-164.05469072,0.00010699,2]
[420053380,1775635838016,-500.0,0.00010699,2]
[420053381,1775635838026,-500.0,0.00010699,2]
[420053382,1775635838036,-500.0,0.00010699,2]
[420053383,1775635838046,-500.0,0.00010699,2]
[420053384,1775635838055,-500.0,0.00010699,2]
[420053385,1775635838065,-500.0,0.00010699,2]
[420053386,1775635838074,-500.0,0.00010699,2]
[420053387,1775635838083,-500.0,0.00010699,2]
[420053388,1775635838093,-500.0,0.00010699,2]
[420053389,1775635838102,-500.0,0.00010699,2]
[420053390,1775635838112,-500.0,0.00010699,2]
[420053391,1775635838120,-500.0,0.00010699,2]
[420053392,1775635838130,-500.0,0.00010699,2]
[420053393,1775635838139,-500.0,0.00010699,2]
[420053394,1775635838148,-500.0,0.00010699,2]
[420053395,1775635838158,-500.0,0.00010699,2]
[420053396,1775635838167,-500.0,0.00010699,2]
[420053397,1775635838177,-500.0,0.00010699,2]
[420053398,1775635838186,-500.0,0.00010699,2]
[420053399,1775635838195,-500.0,0.00010699,2]
[420053400,1775635838204,-500.0,0.00010699,2]
[420053401,1775635838213,-500.0,0.00010699,2]
[420053402,1775635838222,-500.0,0.00010699,2]
[420053403,1775635838231,-500.0,0.00010699,2]
[420053404,1775635838241,-500.0,0.00010699,2]
[420053405,1775635838251,-500.0,0.00010699,2]
[420053406,1775635838260,-500.0,0.00010699,2]
[420053407,1775635838269,-500.0,0.00010699,2]
[420053408,1775635838278,-500.0,0.00010699,2]
[420053409,1775635838288,-500.0,0.00010699,2]
[420053410,1775635838296,-500.0,0.00010699,2]
[420053411,1775635838306,-500.0,0.00010699,2]
[420053412,1775635838316,-500.0,0.00010699,2]
[420053413,1775635838326,-500.0,0.00010699,2]
[420053414,1775635838335,-500.0,0.00010699,2]
[420053415,1775635838344,-500.0,0.00010699,2]
[420053416,1775635838354,-500.0,0.00010699,2]
[420053417,1775635838363,-500.0,0.00010699,2]
[420053421,1775635838730,-500.0,0.00010699,2]
[420053422,1775635838740,-500.0,0.00010699,2]
[420053423,1775635838752,-500.0,0.00010699,2]
[420053424,1775635838762,-500.0,0.00010699,2]
[420053425,1775635838773,-500.0,0.00010699,2]
[420053426,1775635838783,-454.76421435,0.00010699,2]
[420053427,1775635838791,-500.0,0.00010699,2]
[420053428,1775635838801,-500.0,0.00010699,2]
[420053429,1775635838811,-500.0,0.00010699,2]
[420053430,1775635838821,-500.0,0.00010699,2]
[420053431,1775635838831,-500.0,0.00010699,2]
[420053432,1775635838841,-2764642.57108483,0.000107,2]
[420053433,1775635838851,-184.51,0.00010701,2]
[420053434,1775635838861,-1214.55116669,0.00010724,2]
[420053435,1775635838871,-1895.0,0.00010781,2]
[420053436,1775635838881,-150.49059697,0.000108,2]
[420053437,1775635838890,-460.45468055,0.00010863,2]
[420053438,1775635838900,-2500000.0,0.00010873,2]
[420053439,1775635838910,-1122.0,0.00010874,2]
[420053440,1775635838920,-1589.0,0.00010895,2]
[420053441,1775635838930,-2425.2951,0.00010899,2]
[420053442,1775635838940,-160.59720398,0.00010905,2]
[420053443,1775635838950,-836.4590012,0.00010905,2]
[420053444,1775635838960,-1603.43673346,0.00010905,2]
[420053445,1775635838970,-3798.10968146,0.00010905,2]
[420053446,1775635838979,-1008.0,0.00010917,2]
[420053447,1775635838989,-150.0,0.00010959,2]
[420053448,1775635838999,-150.0,0.00010959,2]
[420053449,1775635839008,-1746.0,0.00010961,2]
[420053450,1775635839018,-150.0,0.00010972,2]
[420053451,1775635839029,-500.0,0.00010973,2]
[420053452,1775635839039,-500.0,0.00010973,2]
[420053453,1775635839049,-500.0,0.00010973,2]
[420053454,1775635839058,-500.0,0.00010973,2]
[420053455,1775635839068,-9999.99,0.00010973,2]
[420053456,1775635839077,-9999.99,0.00010973,2]
[420053457,1775635839087,-2459.93,0.00010973,2]
[420053458,1775635839096,-5383.62,0.00010973,2]
[420053459,1775635839105,-9999.99,0.00010973,2]
[420053460,1775635839115,-1575.11,0.00010973,2]
[420053461,1775635839125,-150.99,0.00010973,2]
[420053462,1775635839135,-500.0,0.00010973,2]
[420053463,1775635839144,-500.0,0.00010973,2]
[420053464,1775635839154,-500.0,0.00010973,2]
[420053465,1775635839164,-500.0,0.00010973,2]
[420053466,1775635839174,-169.66281329,0.00010973,2]
[420053467,1775635839184,-500.0,0.00010973,2]
[420053468,1775635839193,-500.22085293,0.00010973,2]
[420053469,1775635839202,-500.0,0.00010973,2]
[420053470,1775635839213,-500.0,0.00010973,2]
[420053471,1775635839223,-200.08326476,0.00010973,2]
[420053472,1775635839233,-500.0,0.00010973,2]
[420053473,1775635839243,-164.45663059,0.00010973,2]
[420053474,1775635839253,-500.0,0.00010973,2]
[420053475,1775635839263,-1537.0,0.00010983,2]
[420053476,1775635839273,-999.99,0.00010989,2]
[420053477,1775635839282,-351.58,0.00010989,2]
[420053478,1775635839292,-299.99,0.00010989,2]
[420053479,1775635839301,-150.99,0.00010989,2]
[420053480,1775635839311,-1905.86,0.00010989,2]
[420053481,1775635839321,-34680.75,0.00010989,2]
[420053482,1775635839330,-499.99,0.00010989,2]
[420053483,1775635839340,-1571.58,0.00010989,2]
[420053484,1775635839349,-4999.99,0.00010989,2]
[420053485,1775635839359,-8464.87,0.00010989,2]
[420053486,1775635839369,-9999.99,0.00010989,2]
[420053487,1775635839378,-460.45468055,0.00010989,2]
[420053488,1775635839388,-217.7187392,0.00010989,2]
[420053489,1775635839397,-151.0,0.00010992,2]
[420053490,1775635839407,-151.0,0.00010992,2]
[420053491,1775635839416,-151.0,0.00010992,2]
[420053492,1775635839426,-151.0,0.00010992,2]
[420053493,1775635839435,-151.0,0.00010992,2]
[420053494,1775635839444,-151.0,0.00010992,2]
[420053495,1775635839453,-500.0,0.00010992,2]
[420053496,1775635839463,-151.0,0.00010992,2]
[420053497,1775635839473,-500.0,0.00010992,2]
[420053498,1775635839483,-151.0,0.00010992,2]
[420053499,1775635839492,-500.0,0.00010992,2]
[420053500,1775635839501,-151.0,0.00010992,2]
[420053501,1775635839511,-500.0,0.00010992,2]
[420053502,1775635839520,-151.0,0.00010992,2]
[420053503,1775635839529,-500.0,0.00010992,2]
[420053504,1775635839540,-151.0,0.00010992,2]
[420053505,1775635839549,-500.0,0.00010992,2]
[420053506,1775635839558,-151.0,0.00010992,2]
[420053507,1775635839568,-500.0,0.00010992,2]
[420053508,1775635839577,-151.0,0.00010992,2]
[420053509,1775635839587,-151.0,0.00010992,2]
[420053510,1775635839596,-500.0,0.00010992,2]
[420053511,1775635839606,-151.0,0.00010992,2]
[420053512,1775635839615,-500.0,0.00010992,2]
[420053513,1775635839625,-500.0,0.00010992,2]
[420053514,1775635839634,-500.0,0.00010992,2]
[420053515,1775635839644,-501.50073946,0.00010992,2]
[420053516,1775635839653,-500.0,0.00010992,2]
[420053517,1775635839663,-500.0,0.00010992,2]
[420053518,1775635839673,-500.0,0.00010992,2]
[420053519,1775635839683,-500.0,0.00010992,2]
[420053520,1775635839692,-500.0,0.00010992,2]
[420053521,1775635839702,-500.0,0.00010992,2]
[420053522,1775635839712,-500.0,0.00010992,2]
[420053523,1775635839721,-500.0,0.00010992,2]
[420053524,1775635839732,-500.0,0.00010992,2]
[420053525,1775635839741,-500.0,0.00010992,2]
[420053526,1775635839751,-151.0,0.00010992,2]
[420053527,1775635839761,-500.0,0.00010992,2]
[420053528,1775635839771,-151.0,0.00010992,2]
[420053529,1775635839781,-500.0,0.00010992,2]
[420053530,1775635839791,-151.0,0.00010992,2]
[420053531,1775635839801,-500.0,0.00010992,2]
[420053532,1775635839810,-151.0,0.00010992,2]
[420053533,1775635839819,-500.0,0.00010992,2]
[420053534,1775635839829,-151.0,0.00010992,2]
[420053536,1775635839839,-500.0,0.00010992,2]
[420053538,1775635839850,-151.0,0.00010992,2]
[420053540,1775635839860,-500.0,0.00010992,2]
[420053541,1775635839869,-151.0,0.00010992,2]
[420053542,1775635839879,-152.45672918,0.00010992,2]
[420053543,1775635839890,-500.0,0.00010992,2]
[420053544,1775635839900,-151.0,0.00010992,2]
[420053545,1775635839909,-500.0,0.00010992,2]
[420053546,1775635839919,-151.0,0.00010992,2]
[420053547,1775635839930,-500.0,0.00010992,2]
[420053548,1775635839940,-151.0,0.00010992,2]
[420053549,1775635839950,-151.0,0.00010992,2]
[420053550,1775635839960,-151.0,0.00010992,2]
[420053551,1775635839970,-151.0,0.00010992,2]
[420053552,1775635839979,-151.0,0.00010992,2]
[420053553,1775635839990,-151.0,0.00010992,2]
[420053554,1775635840000,-151.0,0.00010992,2]
[420053555,1775635840010,-151.0,0.00010992,2]
[420053556,1775635840020,-151.0,0.00010992,2]
[420053557,1775635840029,-151.0,0.00010992,2]
[420053558,1775635840039,-151.0,0.00010992,2]
[420053559,1775635840050,-151.0,0.00010996,2]
[420053560,1775635840059,-1000.0,0.00010997,2]
[420053561,1775635840069,-794.08264049,0.00011,2]
[420053562,1775635840079,-600.0,0.00011,2]
[420053563,1775635840087,-265.36044473,0.00011,2]
[420053564,1775635840097,-300.0,0.00011,2]
[420053565,1775635840107,-300.0,0.00011,2]
[420053566,1775635840117,-265.53289111,0.00011,2]
[420053567,1775635840126,-250.0,0.00011,2]
[420053568,1775635840135,-361.0,0.00011005,2]
[420053569,1775635840145,-528.0,0.00011027,2]
[420053570,1775635840155,-716.0,0.00011048,2]
[420053571,1775635840165,-1362.0,0.0001107,2]
[420053572,1775635840176,-151.68,0.00011074,2]
[420053573,1775635840186,-416.0,0.00011092,2]
[420053574,1775635840196,-35918.84211049,0.00011099,2]
[420053575,1775635840206,-195.0,0.0001122,2]
[420053576,1775635840215,-195.0,0.0001122,2]
[420053577,1775635840225,-250.0,0.0001122,2]
[420053578,1775635840235,-600.0,0.0001122,2]
[420053579,1775635840245,-600.0,0.0001122,2]
[420053580,1775635840255,-600.0,0.0001122,2]
[420053581,1775635840265,-600.0,0.0001122,2]
[420053582,1775635840275,-154.20387248,0.0001122,2]
[420053583,1775635840285,-195.0,0.0001122,2]
[420053584,1775635840295,-195.0,0.0001122,2]
[420053585,1775635840305,-195.0,0.0001122,2]
[420053586,1775635840315,-250.0,0.0001122,2]
[420053587,1775635840325,-359.0,0.00011225,2]
[420053588,1775635840335,-420.0,0.00011225,2]
[420053589,1775635840345,-1680.0,0.00011227,2]
[420053590,1775635840355,-152.18,0.00011233,2]
[420053591,1775635840365,-437.01,0.00011288,2]
[420053592,1775635840376,-196.0,0.00011314,2]
[420053594,1775635840386,-882.09692273,0.00011391,2]
[420053596,1775635840398,-6393.28,0.00011507,2]
[420053598,1775635840409,-488.47611888,0.00011722,2]
[420053599,1775635840419,-437.01,0.00011853,2]
[420053600,1775635840431,-469.0,0.00011918,3]
[420053601,1775635840442,-33041.7805,0.00011944,2]
[420053602,1775635840453,-1000.0,0.00011944,2]
[420053603,1775635840464,-442.74,0.00011958,2]
[420053604,1775635840475,-150.0,0.00012,2]
[420053605,1775635840485,-255.0,0.00012014,2]
[420053606,1775635840495,-2683.73653912,0.00012058,2]
[420053607,1775635840504,-196.0,0.00012122,2]
[420053608,1775635840514,-447.28942319,0.00012166,2]
[420053609,1775635840524,-447.28942319,0.00012286,2]
[420053610,1775635840534,-587.0,0.00012345,2]
[420053611,1775635840544,-2351.0,0.0001235,2]
[420053612,1775635840555,-447.28942319,0.00012407,2]
[420053613,1775635840565,-437.01,0.00012417,2]
[420053614,1775635840574,-623.58710448,0.00012916,2]
[420053615,1775635840583,-578.20924308,0.00012916,2]
[420053616,1775635840593,-500.0,0.00012916,2]
[420053617,1775635840602,-181.08010149,0.00012916,2]
[420053618,1775635840612,-200.0,0.00012916,2]
[420053619,1775635840622,-1235.18214925,0.00012916,2]
[420053620,1775635840632,-295.21379859,0.00012916,2]
[420053621,1775635840641,-151.0,0.00012916,2]
[420053622,1775635840651,-743.50770149,0.00012916,2]
[420053623,1775635840661,-170.0,0.00012916,2]
[420053624,1775635840671,-170.0,0.00012916,2]
[420053625,1775635840683,-170.0,0.00012916,2]
[420053626,1775635840693,-174.61919141,0.00012916,2]
[420053627,1775635840703,-170.0,0.00012916,2]
[420053628,1775635840713,-170.0,0.00012916,2]
[420053629,1775635840723,-170.0,0.00012916,2]
[420053630,1775635840732,-170.0,0.00012916,2]
[420053631,1775635840743,-170.0,0.00012916,2]
[420053632,1775635840752,-170.0,0.00012916,2]
[420053633,1775635840762,-170.0,0.00012916,2]
[420053634,1775635840773,-170.0,0.00012916,2]
[420053635,1775635840783,-170.0,0.00012916,2]
[420053636,1775635840793,-170.0,0.00012916,2]
[420053637,1775635840803,-170.0,0.00012916,2]
[420053638,1775635840811,-170.0,0.00012916,2]
[420053639,1775635840821,-500.0,0.00012971,2]
[420053640,1775635840831,-151.0,0.00012971,2]
[420053641,1775635840840,-437.01,0.00012982,2]
[420053642,1775635840849,-81454.46287592,0.00012999,2]
[420053643,1775635840860,-9891.79784251,0.00013,7]
[420053644,1775635840869,-250.0,0.00013,2]
[420053645,1775635840879,-500.0,0.00013026,2]
[420053646,1775635840888,-151.0,0.00013026,2]
[420053647,1775635840898,-3620.21391383,0.0001305,2]
[420053648,1775635840907,-500.0,0.00013081,2]
[420053649,1775635840917,-151.0,0.00013081,2]
[420053650,1775635840927,-503.0,0.000131,2]
[420053651,1775635840937,-500.0,0.00013136,2]
[420053652,1775635840946,-151.0,0.00013136,2]
[420053653,1775635840956,-433.0,0.00013155,2]
[420053654,1775635840965,-500.0,0.00013191,2]
[420053655,1775635840976,-151.0,0.00013191,2]
[420053656,1775635840985,-500.0,0.00013246,2]
[420053657,1775635840994,-291.21499487,0.00013246,2]
[420053658,1775635841004,-170.9639,0.000133,2]
[420053659,1775635841014,-500.0,0.00013301,2]
[420053660,1775635841023,-500.0,0.00013356,2]
[420053661,1775635841032,-836.45900119,0.00013403,2]
[420053662,1775635841042,-1603.43673345,0.00013403,2]
[420053663,1775635841051,-3798.10968144,0.00013403,2]
[420053664,1775635841061,-500.0,0.00013411,2]
[420053665,1775635841071,-185.433688,0.00013424,2]
[420053666,1775635841081,-316.273065,0.00013424,2]
[420053667,1775635841090,-392.327012,0.00013424,2]
[420053668,1775635841100,-245.351227,0.00013424,2]
[420053669,1775635841109,-1280.88388878,0.00013464,2]
[420053670,1775635841119,-187.78006525,0.00013464,2]
[420053671,1775635841128,-200.0,0.00013464,2]
[420053672,1775635841138,-771.01748645,0.00013464,2]
[420053673,1775635841148,-181.08010149,0.00013464,2]
[420053674,1775635841158,-500.0,0.00013466,2]
[420053675,1775635841167,-250.0,0.00013478,2]
[420053676,1775635841177,-1000.0,0.000135,2]
[420053677,1775635841186,-500.0,0.00013521,2]
[420053678,1775635841196,-437.01,0.00013546,2]
[420053679,1775635841205,-500.0,0.00013576,2]
[420053680,1775635841215,-823.0,0.00013576,2]
[420053681,1775635841224,-3292.0,0.00013585,2]
[420053682,1775635841233,-500.0,0.00013631,2]
[420053683,1775635841243,-500.0,0.00013686,2]